bitfinex/quotes_BTCUSD_20250902
["timestamp","ask_amount","ask_price","bid_price","bid_amount"]
[1756792824957,0.45419731,110400.0,110380.0,0.21058824]
[1756792825189,5.0,110390.0,110380.0,0.21367824]
[1756792825580,5.18117583,110390.0,110380.0,0.21367824]
[1756792825783,0.18117583,110390.0,110380.0,0.21367824]
[1756792826219,0.34,110390.0,110380.0,0.21367824]
[1756792826453,0.30243731,110400.0,110390.0,0.18117583]
[1756792826683,0.74402283,110400.0,110390.0,0.18642583]
[1756792827346,0.7523676,110400.0,110390.0,0.18642583]
[1756792828417,0.77285599,110400.0,110390.0,0.00525]
[1756792829235,0.77285599,110400.0,110390.0,0.18642583]
[1756792830837,0.4279386,110400.0,110390.0,0.18642583]
[1756792831095,0.75533325,110400.0,110390.0,0.18642583]
[1756792831671,0.75533325,110400.0,110390.0,0.21366183]
[1756792833207,0.53263391,110400.0,110390.0,0.21366183]
[1756792833433,0.04003391,110400.0,110390.0,0.36630183]
[1756792833638,0.02048839,110400.0,110390.0,0.36630183]
[1756792833985,0.67414301,110410.0,110400.0,0.18115942]
[1756792834193,0.69568443,110410.0,110400.0,0.18115942]
[1756792834400,0.73673931,110410.0,110400.0,0.18640942]
[1756792834611,0.73475931,110410.0,110400.0,0.18640942]
[1756792836703,0.75496116,110410.0,110400.0,0.18640942]
[1756792837175,0.75496116,110410.0,110400.0,0.21364242]
[1756792837391,0.53276327,110410.0,110400.0,0.21364242]
[1756792839585,0.71390628,110410.0,110400.0,0.21364242]
[1756792840800,0.53276327,110410.0,110400.0,0.21364242]
[1756792841436,0.71390628,110410.0,110400.0,0.21364242]
[1756792841646,0.53276327,110410.0,110400.0,0.21364242]
[1756792842804,0.71390628,110410.0,110400.0,0.21364242]
[1756792843151,0.69434486,110410.0,110400.0,0.21364242]
[1756792844382,0.51320185,110410.0,110400.0,0.21364242]
[1756792844982,0.36020185,110410.0,110400.0,0.21364242]
[1756792846657,0.54329486,110410.0,110400.0,0.36640242]
[1756792849322,0.54329486,110410.0,110400.0,0.36628242]
[1756792851335,0.56284573,110410.0,110400.0,0.36628242]
[1756792852317,0.56284573,110410.0,110400.0,0.33904942]
[1756792853948,0.56089573,110410.0,110400.0,0.33904942]
[1756792854564,0.37975272,110410.0,110400.0,0.33904942]
[1756792854817,0.53227272,110410.0,110400.0,0.33904942]
[1756792855327,0.56089573,110410.0,110400.0,0.18640942]
[1756792855576,0.56089573,110410.0,110400.0,0.33892942]
[1756792856084,0.56089573,110410.0,110400.0,0.18640942]
[1756792856217,0.56284573,110410.0,110400.0,0.33888942]
[1756792858152,0.56284573,110410.0,110400.0,0.18640942]
[1756792858589,0.56284573,110410.0,110400.0,0.33668942]
[1756792858791,0.56284573,110410.0,110400.0,0.33883942]
[1756792864015,0.56288156,110410.0,110400.0,0.33883942]
[1756792864403,0.56093156,110410.0,110400.0,0.33883942]
[1756792864548,0.56288156,110410.0,110400.0,0.33883942]
[1756792866726,0.18115942,110400.0,110390.0,0.20840583]
[1756792866947,0.18115942,110400.0,110390.0,0.36076583]
[1756792867159,0.20273174,110400.0,110390.0,0.21360583]
[1756792867379,0.20273174,110400.0,110390.0,0.36600583]
[1756792867807,0.01959232,110400.0,110390.0,0.36600583]
[1756792868008,0.01959232,110400.0,110390.0,0.36800583]
[1756792869426,0.01959232,110400.0,110390.0,0.36900583]
[1756792869750,0.20075174,110400.0,110390.0,0.36900583]
[1756792869967,0.01959232,110400.0,110390.0,0.36900583]
[1756792871749,0.51252185,110410.0,110400.0,0.18115942]
[1756792871998,0.37979527,110410.0,110400.0,0.18862391]
[1756792872215,0.37979527,110410.0,110400.0,0.18635942]
[1756792875180,0.56093828,110410.0,110400.0,0.18635942]
[1756792875391,0.37979527,110410.0,110400.0,0.18635942]
[1756792877802,0.03979527,110410.0,110400.0,0.18635942]
[1756792878266,0.02020185,110410.0,110400.0,0.18635942]
[1756792878419,0.02020185,110410.0,110400.0,0.21458942]
[1756792878620,0.49224,110420.0,110410.0,0.18114301]
[1756792878825,0.51182508,110420.0,110410.0,0.33770729]
[1756792879033,0.51182508,110420.0,110410.0,0.33862301]
[1756792879247,0.54071168,110420.0,110410.0,0.33862301]
[1756792879640,0.36156508,110420.0,110410.0,0.33862301]
[1756792879837,0.36161222,110420.0,110410.0,0.33862301]
[1756792880610,0.35963222,110420.0,110410.0,0.33862301]
[1756792880823,0.54273882,110420.0,110410.0,0.18114301]
[1756792881039,0.54504882,110420.0,110400.0,0.36062942]
[1756792881239,0.18114301,110410.0,110400.0,0.20838942]
[1756792881489,0.34202714,110420.0,110410.0,0.18114301]
[1756792881681,0.34202714,110420.0,110410.0,0.18634301]
[1756792881682,0.35962431,110420.0,110410.0,0.18634301]
[1756792882767,0.36160431,110420.0,110410.0,0.18634301]
[1756792883406,0.54273091,110420.0,110410.0,0.18114301]
[1756792883578,0.58023062,110420.0,110410.0,0.18114301]
[1756792885340,0.39712402,110420.0,110410.0,0.18634301]
[1756792886727,0.03754685,110420.0,110410.0,0.18634301]
[1756792887198,0.03754685,110420.0,110410.0,0.21357101]
[1756792888571,0.03754685,110420.0,110410.0,0.21457101]
[1756792889233,0.03754685,110420.0,110410.0,0.21657101]
[1756792892529,0.03952685,110420.0,110410.0,0.21657101]
[1756792897102,0.03754685,110420.0,110410.0,0.21657101]
[1756792899334,0.03754685,110420.0,110410.0,0.378127]
[1756792903459,0.32147021,110420.0,110410.0,0.378127]
[1756792904989,0.03754685,110420.0,110410.0,0.530167]
[1756792905251,0.60539357,110420.0,110410.0,0.378127]
[1756792905449,0.60539357,110420.0,110410.0,0.530167]
[1756792905450,0.60737357,110420.0,110410.0,0.530167]
[1756792905602,0.03952685,110420.0,110410.0,0.530167]
[1756792905974,0.60737357,110420.0,110410.0,0.530167]
[1756792906151,0.60737357,110420.0,110410.0,0.378127]
[1756792906389,0.60737357,110420.0,110410.0,0.530167]
[1756792907276,0.60539357,110420.0,110410.0,0.530167]
[1756792908715,0.60539357,110420.0,110410.0,0.378127]
[1756792908968,0.60737357,110420.0,110410.0,0.524927]
[1756792909181,0.60737357,110420.0,110410.0,0.28101101]
[1756792909393,0.60737357,110420.0,110410.0,0.43301101]
[1756792909612,0.60737357,110420.0,110410.0,0.21137101]
[1756792909849,1.07473353,110420.0,110410.0,0.18414301]
[1756792910067,1.07473353,110420.0,110410.0,0.33614301]
[1756792910068,1.41473353,110420.0,110410.0,0.33614301]
[1756792910287,1.41473353,110420.0,110410.0,0.155]
[1756792910505,1.41473353,110420.0,110410.0,0.003]
[1756792913314,1.41242353,110420.0,110410.0,0.18414301]
[1756792913524,1.41473353,110420.0,110410.0,0.003]
[1756792915565,7.3584196,110420.0,110410.0,0.003]
[1756792915789,7.4295498,110420.0,110410.0,0.003]
[1756792916017,7.5010614,110420.0,110410.0,0.003]
[1756792916255,7.50857112,110420.0,110410.0,0.003]
[1756792916472,7.52554701,110420.0,110410.0,0.003]
[1756792916706,7.59249054,110420.0,110410.0,0.003]
[1756792916926,0.52117583,110390.0,110380.0,0.07354631]
[1756792917145,1.24114255,110390.0,110380.0,0.07354631]
[1756792917361,1.24312255,110390.0,110380.0,0.07354631]
[1756792918076,1.24312255,110390.0,110370.0,0.29684909]
[1756792918281,0.56784672,110380.0,110370.0,0.29684909]
[1756792918695,0.56784672,110380.0,110370.0,0.29887909]
[1756792919512,0.56784672,110380.0,110370.0,0.29902049]
[1756792919937,0.67329583,110390.0,110380.0,0.18119224]
[1756792920135,1.08902255,110390.0,110380.0,0.18632224]
[1756792920339,1.05992672,110390.0,110380.0,0.18632224]
[1756792920535,1.24110255,110390.0,110380.0,0.18632224]
[1756792921139,1.24308255,110390.0,110380.0,0.18632224]
[1756792921825,1.24308255,110390.0,110380.0,0.18732224]
[1756792922259,1.09100255,110390.0,110380.0,0.18732224]
[1756792924650,1.09100255,110390.0,110380.0,0.18219224]
[1756792928337,1.09100255,110390.0,110380.0,0.18534224]
[1756792928746,1.09100255,110390.0,110380.0,0.18733224]
[1756792929165,1.08902255,110390.0,110380.0,0.18733224]
[1756792929362,1.09100255,110390.0,110380.0,0.18733224]
[1756792931985,1.24292255,110390.0,110380.0,0.18733224]
[1756792932605,1.24292255,110390.0,110380.0,0.001]
[1756792933034,1.24522255,110390.0,110380.0,0.001]
[1756792933466,1.24292255,110390.0,110380.0,0.001]
[1756792934479,1.6210619,110390.0,110380.0,0.001]
[1756792934702,1.67490765,110390.0,110380.0,0.001]
[1756792934909,6.67490765,110390.0,110380.0,0.001]
[1756792935573,0.52119224,110380.0,110370.0,0.0001414]
[1756792935780,5.67351224,110380.0,110370.0,0.0001414]
[1756792936002,0.67550224,110380.0,110370.0,0.0001414]
[1756792936214,0.66851762,110380.0,110370.0,0.0001414]
[1756792937294,1.23716502,110380.0,110370.0,0.0001414]
[1756792937797,1.23748502,110380.0,110370.0,0.0001414]
[1756792938005,1.23518502,110380.0,110370.0,0.0001414]
[1756792938214,1.23518502,110380.0,110370.0,0.0011414]
[1756792938215,1.23748502,110380.0,110370.0,0.0011414]
[1756792938418,1.23518502,110380.0,110370.0,0.0011414]
[1756792939586,1.08254502,110380.0,110370.0,0.18235006]
[1756792939807,1.23319502,110380.0,110370.0,0.18749006]
[1756792940239,1.23518502,110380.0,110370.0,0.18749006]
[1756792943050,1.23319502,110380.0,110370.0,0.18749006]
[1756792943262,1.23517502,110380.0,110370.0,0.18749006]
[1756792943493,1.241537,110380.0,110370.0,0.18749006]
[1756792943923,1.28332515,110380.0,110370.0,0.18749006]
[1756792944138,0.71269775,110380.0,110370.0,0.18749006]
[1756792944349,1.28134515,110380.0,110370.0,0.18749006]
[1756792945408,1.29832474,110380.0,110370.0,0.18749006]
[1756792946218,0.6801688,110380.0,110370.0,0.18749006]
[1756792946431,0.81574921,110380.0,110370.0,0.18749006]
[1756792946775,0.80938723,110380.0,110370.0,0.18749006]
[1756792946978,0.81575459,110380.0,110370.0,0.18749006]
[1756792947763,0.99694683,110380.0,110370.0,0.18749006]
[1756792948104,0.81571459,110380.0,110370.0,0.18749006]
[1756792948860,0.99690683,110380.0,110370.0,0.18749006]
[1756792949912,0.62140644,110380.0,110370.0,0.34001006]
[1756792950347,0.61503908,110380.0,110370.0,0.34001006]
[1756792950769,0.95069132,110380.0,110370.0,0.18235006]
[1756792950985,0.95069132,110380.0,110370.0,0.0042914]
[1756792951187,0.66636762,110380.0,110370.0,0.0062814]
[1756792951389,1.23501502,110380.0,110370.0,0.0062814]
[1756792951934,1.23501502,110380.0,110370.0,0.18749006]
[1756792952451,0.95069132,110380.0,110370.0,0.18749006]
[1756792952979,0.76751908,110380.0,110370.0,0.18749006]
[1756792953365,0.94871132,110380.0,110370.0,0.21472906]
[1756792953567,0.95069132,110380.0,110370.0,0.21472906]
[1756792955485,0.94871132,110380.0,110370.0,0.21472906]
[1756792956078,0.76751908,110380.0,110370.0,0.21472906]
[1756792956934,0.94871132,110380.0,110370.0,0.21472906]
[1756792958114,0.76751908,110380.0,110370.0,0.21472906]
[1756792958736,0.94871132,110380.0,110370.0,0.21472906]
[1756792959594,0.95069132,110380.0,110370.0,0.21472906]
[1756792960276,0.94871132,110380.0,110370.0,0.21472906]
[1756792960460,0.76751908,110380.0,110370.0,0.21472906]
[1756792960876,0.61503908,110380.0,110370.0,0.21472906]
[1756792961299,0.03984669,110390.0,110380.0,0.18119224]
[1756792961509,0.8229026,110390.0,110380.0,0.18627224]
[1756792961718,0.78313591,110390.0,110380.0,0.33871224]
[1756792961926,0.63069591,110390.0,110380.0,0.33871224]
[1756792962138,0.78313591,110390.0,110380.0,0.33871224]
[1756792962350,0.7767637,110390.0,110380.0,0.33871224]
[1756792962563,0.6243237,110390.0,110380.0,0.33871224]
[1756792963094,0.6253237,110390.0,110380.0,0.33871224]
[1756792964199,0.001,110390.0,110380.0,0.33871224]
[1756792964481,0.2853237,110390.0,110380.0,0.43062823]
[1756792966908,0.2853237,110390.0,110380.0,0.18627224]
[1756792967123,0.2873037,110390.0,110380.0,0.33875224]
[1756792967338,0.2853237,110390.0,110380.0,0.33875224]
[1756792969926,0.2853237,110390.0,110380.0,0.18627224]
[1756792970113,0.2853237,110390.0,110380.0,0.33867224]
[1756792970325,0.2853237,110390.0,110380.0,0.21350624]
[1756792970536,0.47078953,110390.0,110380.0,0.36082624]
[1756792970954,0.46847953,110390.0,110380.0,0.36082624]
[1756792971164,0.2873037,110390.0,110380.0,0.36082624]
[1756792971373,0.2873037,110390.0,110380.0,0.36590624]
[1756792971597,0.001,110390.0,110380.0,0.36590624]
[1756792971836,0.2853237,110390.0,110380.0,0.36590624]
[1756792972249,0.001,110390.0,110380.0,0.36590624]
[1756792972455,0.2853237,110390.0,110380.0,0.36590624]
[1756792982043,0.2853237,110390.0,110380.0,0.21350624]
[1756792982252,0.2853237,110390.0,110380.0,0.36594624]
[1756792982456,0.2873037,110390.0,110380.0,0.36086624]
[1756792982865,0.2873037,110390.0,110380.0,0.36294624]
[1756792983079,0.2873037,110390.0,110380.0,0.36594624]
[1756792985427,0.2853237,110390.0,110380.0,0.36594624]
[1756792990665,0.2853237,110390.0,110380.0,0.21350624]
[1756792990845,0.2873037,110390.0,110380.0,0.21350624]
[1756792991098,0.2873037,110390.0,110380.0,0.36082624]
[1756792991529,0.2863037,110390.0,110380.0,0.36082624]
[1756792991742,0.2873037,110390.0,110380.0,0.36376624]
[1756792992365,0.2873037,110390.0,110380.0,0.36786624]
[1756792993736,0.2863037,110390.0,110380.0,0.36576624]
[1756792993950,0.2863037,110390.0,110380.0,0.36676624]
[1756792994168,0.2863037,110390.0,110380.0,0.36886624]
[1756792997565,0.57032054,110390.0,110380.0,0.36886624]
[1756792999869,0.56834054,110390.0,110380.0,0.36886624]
[1756793000211,0.57032054,110390.0,110380.0,0.36886624]
[1756793000409,0.57032054,110390.0,110380.0,0.21142624]
[1756793000642,0.57032054,110390.0,110380.0,0.36382624]
[1756793001169,0.57032054,110390.0,110380.0,0.36886624]
[1756793002878,0.56834054,110390.0,110380.0,0.36886624]
[1756793003611,0.28417027,110390.0,110380.0,0.36886624]
[1756793006150,0.28615027,110390.0,110380.0,0.21142624]
[1756793006368,0.57032054,110390.0,110380.0,0.36664624]
[1756793006584,0.57032054,110390.0,110380.0,0.36874624]
[1756793007012,0.56834054,110390.0,110380.0,0.36874624]
[1756793007442,0.28417027,110390.0,110380.0,0.36874624]
[1756793007853,0.80532996,110400.0,110390.0,0.18117583]
[1756793008044,1.11107547,110400.0,110390.0,0.18117583]
[1756793008933,1.11338547,110400.0,110390.0,0.18117583]
[1756793009140,1.11107547,110400.0,110390.0,0.18217583]
[1756793009760,1.11107547,110400.0,110390.0,0.17967583]
[1756793010033,1.39524574,110400.0,110390.0,0.17967583]
[1756793012325,6.42416049,110400.0,110390.0,0.001]
[1756793012529,6.44865443,110400.0,110390.0,0.001]
[1756793014205,6.41973968,110400.0,110390.0,0.001]
[1756793014639,6.57189968,110400.0,110390.0,0.001]
[1756793015418,6.54740574,110400.0,110390.0,0.001]
[1756793015626,5.69489493,110400.0,110390.0,0.001]
[1756793015804,6.54740574,110400.0,110390.0,0.001]
[1756793016320,6.56441759,110400.0,110390.0,0.001]
[1756793016646,6.41863721,110400.0,110390.0,0.001]
[1756793016890,6.57075721,110400.0,110390.0,0.00606]
[1756793017093,6.57075721,110400.0,110390.0,0.00393]
[1756793017300,6.56437772,110400.0,110390.0,0.001]
[1756793017722,6.54736574,110400.0,110390.0,0.001]
[1756793017934,0.35959524,110400.0,110390.0,0.18723583]
[1756793018141,1.2611752,110400.0,110390.0,0.18723583]
[1756793018773,1.2612552,110400.0,110390.0,0.18723583]
[1756793019403,1.2612152,110400.0,110390.0,0.18723583]
[1756793020253,1.2631952,110400.0,110390.0,0.18430583]
[1756793020469,1.2631952,110400.0,110390.0,0.18217583]
[1756793020715,1.2631952,110400.0,110390.0,0.001]
[1756793021436,1.54736547,110400.0,110390.0,0.001]
[1756793021623,1.54736547,110400.0,110390.0,0.18217583]
[1756793021891,1.57076003,110400.0,110390.0,0.18217583]
[1756793022402,1.57076003,110400.0,110390.0,0.001]
[1756793025239,1.59363486,110400.0,110390.0,0.001]
[1756793025492,1.59363046,110400.0,110390.0,0.001]
[1756793025711,1.38959621,110400.0,110390.0,0.18217583]
[1756793025920,1.28020943,110400.0,110390.0,0.18723583]
[1756793028895,1.28019669,110400.0,110390.0,0.18723583]
[1756793030247,1.06088405,110400.0,110390.0,0.18723583]
[1756793030455,0.94019669,110400.0,110390.0,0.18723583]
[1756793031358,6.23074238,110400.0,110390.0,0.001]
[1756793032380,5.71609157,110400.0,110390.0,0.18723583]
[1756793032589,6.28443211,110400.0,110390.0,0.18723583]
[1756793033463,6.27805669,110400.0,110390.0,0.18723583]
[1756793033728,6.28003669,110400.0,110390.0,0.18723583]
[1756793034570,6.27805669,110400.0,110390.0,0.18723583]
[1756793034782,0.03659673,110400.0,110390.0,0.18723583]
[1756793035058,1.00979674,110410.0,110400.0,0.18115942]
[1756793035292,1.00027587,110410.0,110400.0,0.34044391]
[1756793035509,0.4487,110410.0,110400.0,0.33817942]
[1756793035947,0.4487,110410.0,110400.0,0.36541042]
[1756793036160,0.73287027,110410.0,110400.0,0.36541042]
[1756793036406,0.001,110410.0,110400.0,0.36541042]
[1756793036651,0.28517027,110410.0,110400.0,0.36541042]
[1756793037846,0.28417027,110410.0,110400.0,0.36541042]
[1756793038063,0.28517027,110410.0,110400.0,0.36541042]
[1756793038618,0.28417027,110410.0,110400.0,0.36541042]
[1756793039308,0.32166998,110420.0,110410.0,0.18114301]
[1756793039526,0.32166998,110420.0,110410.0,0.18553729]
[1756793039750,0.32166998,110420.0,110410.0,0.18846729]
[1756793039964,0.32166998,110420.0,110410.0,0.21343201]
[1756793040641,0.60631158,110420.0,110410.0,0.21543201]
[1756793041131,0.60631158,110420.0,110410.0,0.21643201]
[1756793042073,0.60829158,110420.0,110410.0,0.21643201]
[1756793042291,0.60631158,110420.0,110410.0,0.36839201]
[1756793043033,0.60829158,110420.0,110410.0,0.36843201]
[1756793046119,0.60829158,110420.0,110410.0,0.21643201]
[1756793046359,0.60829158,110420.0,110410.0,0.36835201]
[1756793048288,1.07588845,110420.0,110410.0,0.182109]
[1756793048505,1.13588845,110420.0,110410.0,0.21137201]
[1756793048720,1.13588845,110420.0,110410.0,0.18414301]
[1756793049587,1.28776845,110420.0,110410.0,0.18414301]
[1756793053906,1.28546845,110420.0,110410.0,0.18414301]
[1756793054126,0.66829158,110420.0,110410.0,0.18924301]
[1756793055785,0.66631158,110420.0,110410.0,0.18924301]
[1756793056176,0.66631158,110420.0,110410.0,0.21647101]
[1756793056646,0.60631158,110420.0,110410.0,0.21647101]
[1756793057530,0.32198287,110420.0,110410.0,0.21647101]
[1756793059216,0.32396287,110420.0,110410.0,0.36847101]
[1756793060135,0.32198287,110420.0,110410.0,0.36847101]
[1756793060347,0.03797104,110420.0,110410.0,0.460387]
[1756793061682,0.32198287,110420.0,110410.0,0.460387]
[1756793062761,0.03797104,110420.0,110410.0,0.460387]
[1756793063883,0.32198287,110420.0,110410.0,0.460387]
[1756793065913,0.03797104,110420.0,110410.0,0.460387]
[1756793066366,0.00047133,110420.0,110410.0,0.460387]
[1756793066760,0.28448316,110420.0,110410.0,0.460387]
[1756793067641,0.28448316,110420.0,110410.0,0.308387]
[1756793067877,0.28448316,110420.0,110410.0,0.460307]
[1756793068771,0.3082791,110420.0,110410.0,0.460307]
[1756793069848,0.3082791,110420.0,110410.0,0.529947]
[1756793071213,0.3082791,110420.0,110410.0,0.529907]
[1756793071455,0.3082791,110420.0,110410.0,0.529867]
[1756793071672,0.02426727,110420.0,110410.0,0.529867]
[1756793072113,0.3082791,110420.0,110410.0,0.529867]
[1756793074443,0.3102591,110420.0,110410.0,0.529867]
[1756793074703,0.3082791,110420.0,110410.0,0.529867]
[1756793084877,0.3082791,110420.0,110410.0,0.378027]
[1756793085097,0.3082791,110420.0,110410.0,0.529867]
[1756793087597,0.02426727,110420.0,110410.0,0.529867]
[1756793087803,0.3082791,110420.0,110410.0,0.529867]
[1756793091167,0.3102591,110420.0,110410.0,0.529867]
[1756793092430,0.3082791,110420.0,110410.0,0.529867]
[1756793093791,0.02426727,110420.0,110410.0,0.529867]
[1756793093989,0.3082791,110420.0,110410.0,0.529867]
[1756793095203,0.3082791,110420.0,110410.0,0.43285101]
[1756793095204,0.3125691,110420.0,110410.0,0.43285101]
[1756793096032,0.4936957,110420.0,110410.0,0.030228]
[1756793096274,0.51327034,110420.0,110410.0,0.33598301]
[1756793096486,0.51327034,110420.0,110410.0,0.18414301]
[1756793096695,0.85327034,110420.0,110410.0,0.15484]
[1756793097101,0.85327034,110420.0,110410.0,0.003]
[1756793097326,0.85327034,110420.0,110410.0,0.15484]
[1756793098612,0.87987509,110420.0,110410.0,0.003]
[1756793098825,1.16388692,110420.0,110410.0,0.003]
[1756793099050,0.93987509,110420.0,110410.0,0.002]
[1756793099253,1.25111792,110420.0,110410.0,0.002]
[1756793099464,0.52114301,110410.0,110400.0,0.33299942]
[1756793099666,1.09147667,110410.0,110400.0,0.33299942]
[1756793099883,1.09345667,110410.0,110400.0,0.33299942]
[1756793100284,1.09345667,110410.0,110400.0,0.18115942]
[1756793100490,1.09345667,110410.0,110400.0,0.33299942]
[1756793100700,1.09345667,110410.0,110400.0,0.15184]
[1756793100911,1.09345667,110410.0,110400.0,0.33299942]
[1756793101140,1.11300247,110410.0,110400.0,0.33299942]
[1756793101571,1.09345667,110410.0,110400.0,0.33299942]
[1756793101756,1.09345667,110410.0,110400.0,0.33399942]
[1756793101970,0.80944484,110410.0,110400.0,0.18215942]
[1756793102173,0.80944484,110410.0,110400.0,0.33399942]
[1756793102624,0.80713484,110410.0,110400.0,0.18415942]
[1756793102840,0.80713484,110410.0,110400.0,0.33599942]
[1756793103259,0.80943484,110410.0,110400.0,0.33599942]
[1756793104165,0.62599183,110410.0,110400.0,0.33599942]
[1756793104393,0.62401183,110410.0,110400.0,0.34119942]
[1756793105885,0.80714484,110410.0,110400.0,0.33599942]
[1756793106096,0.80515484,110410.0,110400.0,0.34098942]
[1756793106916,0.62401183,110410.0,110400.0,0.34098942]
[1756793107577,0.34,110410.0,110400.0,0.34098942]
[1756793107788,0.62401183,110410.0,110400.0,0.34098942]
[1756793108613,0.34,110410.0,110400.0,0.34098942]
[1756793108826,0.62401183,110410.0,110400.0,0.34098942]
[1756793109669,0.62401183,110410.0,110400.0,0.18914942]
[1756793109882,0.62401183,110410.0,110400.0,0.34098942]
[1756793113130,0.34,110410.0,110400.0,0.34098942]
[1756793113352,0.3682791,110420.0,110410.0,0.18114301]
[1756793113562,0.18238696,110420.0,110410.0,0.18545729]
[1756793113769,0.18238696,110420.0,110410.0,0.18613301]
[1756793113989,0.18436696,110420.0,110410.0,0.33298301]
[1756793114214,0.18436696,110420.0,110410.0,0.33797301]
[1756793114643,0.20548485,110420.0,110410.0,0.33797301]
[1756793114821,0.20548485,110420.0,110410.0,0.33897301]
[1756793116654,0.20746485,110420.0,110410.0,0.33398301]
[1756793116851,0.02507789,110420.0,110410.0,0.33398301]
[1756793117056,0.30908972,110420.0,110410.0,0.33897301]
[1756793117464,0.30710972,110420.0,110410.0,0.33897301]
[1756793117998,0.30908972,110420.0,110410.0,0.33398301]
[1756793118511,0.30908972,110420.0,110410.0,0.33897301]
[1756793118677,0.30710972,110420.0,110410.0,0.33897301]
[1756793119499,0.59111503,110420.0,110410.0,0.33897301]
[1756793124147,0.30710646,110420.0,110410.0,0.33897301]
[1756793124702,0.02309789,110420.0,110410.0,0.33897301]
[1756793124940,0.30710646,110420.0,110410.0,0.33897301]
[1756793125160,0.28400857,110420.0,110410.0,0.33897301]
[1756793125585,0.28400857,110420.0,110410.0,0.36620001]
[1756793125919,0.7887,110430.0,110420.0,0.1811266]
[1756793126128,1.09226932,110430.0,110420.0,0.181268]
[1756793126354,1.11506011,110430.0,110420.0,0.186258]
[1756793127050,1.11606011,110430.0,110420.0,0.186258]
[1756793129031,1.11804011,110430.0,110420.0,0.186258]
[1756793129378,1.11804011,110430.0,110420.0,0.184208]
[1756793129590,1.11804011,110430.0,110420.0,0.181268]
[1756793131085,1.11804011,110430.0,110420.0,0.183318]
[1756793131317,1.11606011,110430.0,110420.0,0.186258]
[1756793132429,1.09649936,110430.0,110420.0,0.186258]
[1756793134556,1.09847936,110430.0,110420.0,0.186258]
[1756793134767,1.09847936,110430.0,110420.0,0.338058]
[1756793135899,1.09649936,110430.0,110420.0,0.338058]
[1756793136330,1.09847936,110430.0,110420.0,0.338058]
[1756793138105,1.10078936,110430.0,110420.0,0.333068]
[1756793138337,1.09847936,110430.0,110420.0,0.333068]
[1756793139503,1.11803991,110430.0,110420.0,0.333068]
[1756793140345,1.11803991,110430.0,110420.0,0.181268]
[1756793140560,1.40204848,110430.0,110420.0,0.333068]
[1756793141976,0.83403134,110430.0,110420.0,0.333068]
[1756793142194,1.40204848,110430.0,110420.0,0.333068]
[1756793143420,1.11803991,110430.0,110420.0,0.333068]
[1756793143594,0.83403134,110430.0,110420.0,0.333068]
[1756793143795,1.11803991,110430.0,110420.0,0.333068]
[1756793146731,1.29915011,110430.0,110420.0,0.333068]
[1756793146972,1.40204848,110430.0,110420.0,0.333068]
[1756793147363,1.58315868,110430.0,110420.0,0.333068]
[1756793147777,1.40204848,110430.0,110420.0,0.333068]
[1756793147997,0.77605991,110430.0,110420.0,0.338028]
[1756793148232,0.77605991,110430.0,110420.0,0.365255]
[1756793149671,0.75649936,110430.0,110420.0,0.365255]
[1756793152512,0.47249079,110430.0,110420.0,0.74117956]
[1756793152771,0.02379079,110430.0,110420.0,0.74117956]
[1756793154012,0.02279079,110430.0,110420.0,0.74317956]
[1756793154199,0.02279079,110430.0,110420.0,0.74117956]
[1756793154422,0.28400857,110450.0,110440.0,0.1810938]
[1756793154613,0.28400857,110450.0,110440.0,0.3348538]
[1756793154858,0.32155728,110450.0,110440.0,0.3378138]
[1756793156070,0.32155728,110450.0,110440.0,0.3650358]
[1756793156447,0.32353728,110450.0,110440.0,0.3650358]
[1756793156650,0.32353728,110450.0,110440.0,0.3660358]
[1756793158802,0.32155728,110450.0,110440.0,0.3660358]
[1756793160273,0.03754871,110450.0,110440.0,0.3660358]
[1756793160485,0.4487,110480.0,110470.0,0.18104462]
[1756793160702,5.92953299,110480.0,110470.0,0.33280462]
[1756793161136,5.96571162,110480.0,110470.0,0.33280462]
[1756793161800,0.94617577,110480.0,110470.0,0.33280462]
[1756793162018,0.38115863,110480.0,110470.0,0.33280462]
[1756793162287,0.3251672,110480.0,110470.0,0.33776462]
[1756793162490,0.3231872,110480.0,110470.0,0.36497962]
[1756793163125,0.03917863,110480.0,110470.0,0.36497962]
[1756793163349,0.3231872,110480.0,110470.0,0.36497962]
[1756793163906,0.3231872,110480.0,110470.0,0.36493962]
[1756793164128,0.04217863,110480.0,110470.0,0.36493962]
[1756793164531,0.3261872,110480.0,110470.0,0.36493962]
[1756793165030,0.03917863,110480.0,110470.0,0.36493962]
[1756793165302,0.03617863,110480.0,110470.0,0.81050418]
[1756793165516,0.03617863,110480.0,110470.0,0.81250418]
[1756793165699,0.28400857,110490.0,110480.0,0.18102824]
[1756793165866,0.28415004,110490.0,110480.0,0.18637109]
[1756793166061,0.32370042,110490.0,110480.0,0.18843109]
[1756793166274,0.32370042,110490.0,110480.0,0.18616824]
[1756793166519,0.32370042,110490.0,110480.0,0.21337924]
[1756793166732,0.32172042,110490.0,110480.0,0.21337924]
[1756793167608,0.32172042,110490.0,110480.0,0.21437924]
[1756793167829,0.03771185,110490.0,110480.0,0.21437924]
[1756793168042,0.03771185,110490.0,110480.0,0.5903038]
[1756793168463,0.03771185,110490.0,110480.0,0.30629523]
[1756793168673,0.32172042,110490.0,110480.0,0.45801523]
[1756793168889,0.32172042,110490.0,110480.0,0.30629523]
[1756793169160,0.32370042,110490.0,110480.0,0.20923924]
[1756793169372,0.61001899,110490.0,110480.0,0.36095924]
[1756793169583,0.32601042,110490.0,110480.0,0.36095924]
[1756793169822,0.32370042,110490.0,110480.0,0.36095924]
[1756793170029,0.32172042,110490.0,110480.0,0.36609924]
[1756793170244,0.32370042,110490.0,110480.0,0.36609924]
[1756793171394,0.32370042,110490.0,110480.0,0.36099924]
[1756793172771,0.32370042,110490.0,110480.0,0.20923924]
[1756793173003,0.32370042,110490.0,110480.0,0.36103924]
[1756793173435,0.32172042,110490.0,110480.0,0.36617924]
[1756793173930,0.32370042,110490.0,110480.0,0.36617924]
[1756793174352,0.03969185,110490.0,110480.0,0.36617924]
[1756793174482,0.32370042,110490.0,110480.0,0.36617924]
[1756793174676,0.03969185,110490.0,110480.0,0.36617924]
[1756793175014,0.32172042,110490.0,110480.0,0.36617924]
[1756793176180,0.32370042,110490.0,110480.0,0.36617924]
[1756793176976,0.32172042,110490.0,110480.0,0.36617924]
[1756793178467,0.32370042,110490.0,110480.0,0.36617924]
[1756793179084,0.32370042,110490.0,110480.0,0.20923924]
[1756793179290,0.32370042,110490.0,110480.0,0.31091924]
[1756793179508,0.03969185,110490.0,110480.0,0.31091924]
[1756793179714,0.32334341,110490.0,110480.0,0.31605924]
[1756793181898,0.32334341,110490.0,110480.0,0.15923924]
[1756793182094,0.32334341,110490.0,110480.0,0.31091924]
[1756793182570,0.03969185,110490.0,110480.0,0.31091924]
[1756793182783,0.32334341,110490.0,110480.0,0.31605924]
[1756793185258,0.32334341,110490.0,110480.0,0.16437924]